[Event "1. Bamberg-Open 2018"]
[Site "Bamberg"]
[Date "2018.05.12"]
[Round "6"]
[White "Scholz, Christian"]
[Black "Spitzl, Vinzent"]
[Result "1-0"]
[ECO "D38"]
[WhiteElo "2388"]
[BlackElo "2254"]
[Annotator "NA"]
[PlyCount "67"]
[EventDate "2018.??.??"]
[EventType "swiss"]
[EventCountry "GER"]
[SourceTitle "playchess.com"]
[Source "ChessBase"]
[SourceQuality "1"]
[TimeControl "40/5400+30:900+30"]

{[%evp 13,66,21,32767,32767,32767,32767,10,8,16,8,0,0,19,32767,18,16,32767,0,32767,0,12,32767,37,36,32767,60,32767,59,234,97,32767,192,32767,152,139,128,32767,32767,32767,32767,121,32767,32767,32767,32767,323,32767,429,499,32767,622,671,760,32767,1364]} 1. d4 {[%emt 0:00:00]} d5 {[%emt 0:01:21]} 2. c4 {[%emt 0:00:00]} e6 {[%emt 0:00:05]} 3. Nc3 {[%emt 0:00:00]} Bb4 {[%emt 0:00:04]} 4. Nf3 {[%emt 0:00:00]} Nf6 {[%emt 0:00:05]} 5. Bg5 {[%emt 0:00:17]} h6 {[%emt 0:00:28]} 6. Bxf6 {[%emt 0:00:06]} Qxf6 {[%emt 0:00:05]} 7. e3 {[%emt 0:00:10] LiveBook: 722 Games} O-O {[%emt 0:00:25]} 8. Rc1 {[%emt 0:00:07]} Nc6 {[%emt 0:00:13]} 9. Qb3 {[%emt 0:06:48] D38: Queen's Gambit Declined: Ragozin Defence (4 Nf3 Bb4)} (9. cxd5 exd5 10. a3 Bxc3+ 11. Rxc3 Ne7 12. Be2 c6 13. O-O Ng6 14. b4 a6 15. a4 Bg4 16. Ne1 Bxe2 17. Qxe2 Rfe8 18. Qf3 Qg5 19. Qg3 Qf6 20. Qf3 Qg5 21. Qg3 Qf6 22. Qf3 {½-½ (22) Bu,X (2730)-Harikrishna,P (2744) Riadh 2017}) 9... a5 {[%emt 0:00:11]} 10. a3 {[%emt 0:07:49]} a4 {[%emt 0:02:32]} 11. Qc2 {[%emt 0:00:13]} Ba5 {[%emt 0:00:30]} 12. Nd2 $146 {[%emt 0:13:37]} ({Predecessor:} 12. Be2 dxc4 13. Bxc4 e5 14. d5 Nd4 15. Qd1 Bg4 16. exd4 e4 17. h3 exf3 18. hxg4 fxg2 19. Rg1 Rfe8+ 20. Be2 Qf3 21. Rc2 Re7 22. Kd2 Qxf2 23. Kc1 Rae8 {0-1 (23) Lukacs,P (2420)-Horvath,P (2482) Budapest 2002}) 12... Rd8 {[%emt 0:10:31]} 13. Be2 {[%emt 0:06:51]} Bxc3 {[%emt 0:01:58]} 14. bxc3 {[%emt 0:06:37]} dxc4 {[%emt 0:01:34]} 15. Bxc4 {[%emt 0:02:46]} e5 {[%emt 0:01:18]} 16. O-O {[%emt 0:00:57]} Qd6 {[%emt 0:07:50]} 17. Qa2 {[%emt 0:12:35]} Qg6 {[%emt 0:03:39]} 18. f4 {[%emt 0:04:37]} exd4 {[%emt 0:04:05]} 19. cxd4 {[%emt 0:03:26]} Na5 {[%emt 0:04:49]} 20. f5 {[%emt 0:13:11]} Qf6 $2 {[%emt 0:03:45] [#]} ({Better is} 20... Bxf5 $14 21. Bxf7+ Qxf7 22. Qxf7+ Kxf7) 21. Bd3 {[%emt 0:03:21]} (21. Ne4 $1 $18 {[%cal Re4f6] is the precise move to win.} Qe7 22. Bd3) 21... Qg5 {[%emt 0:12:05]} 22. Rf3 {[%emt 0:01:28]} ({Stronger than} 22. Rxc7 Qxe3+ 23. Kh1 Bd7 $15) 22... Nb3 {[%emt 0:00:58]} 23. Nxb3 {[%emt 0:04:24]} axb3 {[%emt 0:00:07]} 24. Qxb3 {[%emt 0:00:25]} Qe7 {[%emt 0:01:18]} 25. a4 {[%emt 0:00:59]} Rd6 {[%emt 0:00:17]} 26. Bc4 {[%emt 0:01:52]} Ra5 {[%emt 0:02:25]} (26... Rf6 $14) 27. f6 {[%emt 0:00:56]} Rxf6 {[%emt 0:00:55] [#]} 28. Bxf7+ $1 {[%emt 0:00:16]} Kh7 {[%emt 0:02:28]} 29. Rxf6 {[%emt 0:01:54]} Qxf6 {[%emt 0:00:27]} 30. Rxc7 {[%emt 0:00:58]} Bg4 {[%emt 0:04:16]} 31. Bc4 {[%emt 0:01:58]} h5 {[%emt 0:02:48]} 32. Bd3+ {[%emt 0:01:11]} Bf5 {[%emt 0:01:06]} 33. Rf7 {[%emt 0:02:25]} Qg5 $18 {[%emt 0:02:27]} 34. Bxf5+ {[%emt 0:00:30]} 1-0

[Event "1. Bamberg-Open 2018"]
[Site "Bamberg"]
[Date "2018.05.12"]
[Round "6"]
[White "Troyke, Christian"]
[Black "Pfadenhauer, Johannes"]
[Result "1-0"]
[ECO "A00"]
[WhiteElo "2342"]
[BlackElo "2167"]
[Annotator "ChessBase"]
[PlyCount "81"]
[EventDate "2018.??.??"]
[EventType "swiss"]
[EventCountry "GER"]
[SourceTitle "playchess.com"]
[Source "ChessBase"]
[SourceQuality "1"]
[TimeControl "40/5400+30:900+30"]

1. g3 {[%emt 0:00:00]} g6 {[%emt 0:00:11]} 2. Bg2 {[%emt 0:00:00]} Bg7 {[%emt 0:00:03]} 3. d4 {[%emt 0:00:00]} c5 {[%emt 0:01:20]} 4. c3 {[%emt 0:00:02]} cxd4 {[%emt 0:02:38]} 5. cxd4 {[%emt 0:00:11]} Nf6 {[%emt 0:00:02]} 6. e4 {[%emt 0:00:29]} d6 {[%emt 0:00:53]} 7. Nc3 {[%emt 0:00:23]} O-O {[%emt 0:00:07]} 8. Nge2 {[%emt 0:00:27]} Nc6 {[%emt 0:01:44]} 9. O-O {[%emt 0:00:20]} e5 {[%emt 0:01:37]} 10. h3 {[%emt 0:02:20]} Nd7 {[%emt 0:09:39]} 11. Be3 {[%emt 0:03:36]} Qe7 {[%emt 0:03:58]} 12. Rc1 {[%emt 0:04:30]} Nb6 {[%emt 0:07:19]} 13. b3 {[%emt 0:03:36]} Rd8 {[%emt 0:02:20]} 14. d5 {[%emt 0:04:01]} Nb8 {[%emt 0:00:16]} 15. Nb5 {[%emt 0:00:15]} Na6 {[%emt 0:01:07]} 16. Nxa7 {[%emt 0:00:27]} Nc5 {[%emt 0:03:06]} 17. Nxc8 {[%emt 0:01:53]} Rdxc8 {[%emt 0:00:31]} 18. Qd2 {[%emt 0:01:31]} f5 {[%emt 0:01:25]} 19. exf5 {[%emt 0:08:12]} gxf5 {[%emt 0:00:18]} 20. f4 {[%emt 0:00:13]} e4 {[%emt 0:01:56]} 21. Nd4 {[%emt 0:03:39]} Qf7 {[%emt 0:04:36]} 22. Ne6 {[%emt 0:02:32]} Nbd7 {[%emt 0:11:10]} 23. Rfd1 {[%emt 0:20:38]} Bf6 {[%emt 0:06:04]} 24. g4 {[%emt 0:05:33]} Be7 {[%emt 0:08:49]} 25. Bf1 {[%emt 0:04:11]} Qg6 {[%emt 0:01:26]} 26. Qg2 {[%emt 0:01:43]} Kf7 {[%emt 0:03:28]} 27. Bc4 {[%emt 0:03:19]} h5 {[%emt 0:02:08]} 28. g5 {[%emt 0:01:09]} h4 {[%emt 0:02:37]} 29. Kh1 {[%emt 0:04:50]} Ra3 {[%emt 0:01:03]} 30. Qe2 {[%emt 0:02:12]} b6 {[%emt 0:06:08]} 31. Bb5 {[%emt 0:02:27]} Rca8 {[%emt 0:01:08]} 32. Rc2 {[%emt 0:03:21]} Nf8 {[%emt 0:04:01]} 33. Nxc5 {[%emt 0:04:16]} bxc5 {[%emt 0:00:40]} 34. Ba4 {[%emt 0:00:43]} Qh7 {[%emt 0:01:24]} 35. Rc4 {[%emt 0:01:55]} Ng6 {[%emt 0:09:02]} 36. Rf1 {[%emt 0:00:25]} Qg8 {[%emt 0:00:39]} 37. Bc1 {[%emt 0:01:08]} Nxf4 {[%emt 0:01:54]} 38. Bxf4 {[%emt 0:01:03]} Bxg5 {[%emt 0:00:29]} 39. Bxg5 {[%emt 0:02:30]} Qxg5 {[%emt 0:00:13]} 40. Rxe4 {[%emt 0:00:21]} R8xa4 {[%emt 0:16:56]} 41. Rxa4 1-0

[Event "1. Bamberg-Open 2018"]
[Site "Bamberg"]
[Date "2018.05.12"]
[Round "6"]
[White "Tscharotschkin, Michael"]
[Black "Popvasilev, Kaloyan"]
[Result "1-0"]
[ECO "B22"]
[WhiteElo "2219"]
[BlackElo "2050"]
[Annotator "NA"]
[PlyCount "53"]
[EventDate "2018.??.??"]
[EventType "swiss"]
[EventCountry "GER"]
[SourceTitle "playchess.com"]
[Source "ChessBase"]
[SourceQuality "1"]
[TimeControl "40/5400+30:900+30"]

{[%evp 15,52,8,32767,32767,32767,32767,32767,32767,0,1,0,0,0,32767,-7,0,-12,0,-11,32767,-8,-14,53,32767,28,41,32767,32767,32767,32767,32767,32767,214,99,150,32767,29981,29987,29991]} 1. e4 {[%emt 0:00:00]} c5 {[%emt 0:00:07]} 2. c3 {[%emt 0:00:00]} Nf6 {[%emt 0:00:35]} 3. e5 {[%emt 0:00:00]} Nd5 {[%emt 0:00:07]} 4. d4 {[%emt 0:00:00]} cxd4 {[%emt 0:01:11]} 5. cxd4 {[%emt 0:00:07]} Nc6 {[%emt 0:00:19]} 6. Nf3 {[%emt 0:00:07]} d6 {[%emt 0:00:54]} 7. Bc4 {[%emt 0:00:33]} e6 {[%emt 0:00:50]} 8. O-O {[%emt 0:00:22]} Be7 {[%emt 0:00:55]} 9. Qe2 {[%emt 0:00:54]} O-O {[%emt 0:03:48]} 10. Nc3 {[%emt 0:00:48]} Nxc3 {[%emt 0:05:57]} 11. bxc3 {[%emt 0:00:23]} dxe5 {[%emt 0:00:21]} 12. dxe5 {[%emt 0:03:21]} Qc7 {[%emt 0:00:55]} 13. Bd3 {[%emt 0:04:20]} b6 {[%emt 0:05:19] B22: Sicilian: 2 c3} 14. Qe4 {[%emt 0:07:57]} g6 {[%emt 0:00:50]} 15. Bh6 {[%emt 0:00:20]} Rd8 {[%emt 0:00:53]} 16. Rad1 {[%emt 0:01:24]} Bb7 {[%emt 0:06:37]} 17. Qf4 {[%emt 0:01:28]} Rd5 {[%emt 0:18:01] LiveBook: 12 Games} 18. Be4 {[%emt 0:01:38]} Rc5 {[%emt 0:06:57]} 19. Rfe1 {[%emt 0:06:46] [#]} Rc8 $146 {[%emt 0:17:21]} ({Predecessor:} 19... Rc4 20. Ng5 Nd8 21. Rd4 Rxd4 22. cxd4 {½-½ (43) Saldano Dayer,H (2425)-Pichot,A (2536) Villa Martelli 2016}) 20. h4 {[%emt 0:01:46]} Rc4 {[%emt 0:10:38]} 21. h5 {[%emt 0:07:17]} Nd8 {[%emt 0:11:12]} 22. hxg6 {[%emt 0:02:10]} hxg6 {[%emt 0:00:42]} 23. Nd2 {[%emt 0:02:45]} Ra4 {[%emt 0:03:33] [#]} 24. c4 {[%emt 0:03:50]} (24. Qg3 $1 $18 {has better winning chances.} Qxc3 25. Re3) 24... Nc6 {[%emt 0:02:31]} (24... Bc6 $142) 25. Qg3 {[%emt 0:03:57]} Rxa2 {[%emt 0:01:15] [#]} (25... Qxe5 $16 26. Qxe5 Nxe5) 26. Bxg6 $1 {[%emt 0:01:08]} Kh8 {[%emt 0:00:23]} 27. Bxf7 {[%emt 0:01:38]} 1-0

[Event "1. Bamberg-Open 2018"]
[Site "Bamberg"]
[Date "2018.05.12"]
[Round "6"]
[White "Kraich, Klaus"]
[Black "Paehtz, Thomas"]
[Result "0-1"]
[ECO "A04"]
[WhiteElo "2169"]
[BlackElo "2353"]
[Annotator "ChessBase"]
[PlyCount "82"]
[EventDate "2018.??.??"]
[EventType "swiss"]
[EventCountry "GER"]
[SourceTitle "playchess.com"]
[Source "ChessBase"]
[SourceQuality "1"]
[TimeControl "40/5400+30:900+30"]

1. Nf3 {[%emt 0:00:00]} g6 {[%emt 0:00:07]} 2. d4 {[%emt 0:00:00]} Bg7 {[%emt 0:00:07]} 3. e4 {[%emt 0:01:34]} d6 {[%emt 0:00:08]} 4. Bc4 {[%emt 0:00:15]} Nf6 {[%emt 0:07:00]} 5. Qe2 {[%emt 0:00:42]} O-O {[%emt 0:02:10]} 6. O-O {[%emt 0:00:49]} c6 {[%emt 0:06:41]} 7. Bb3 {[%emt 0:00:25]} Bg4 {[%emt 0:06:34]} 8. h3 {[%emt 0:00:19]} Bxf3 {[%emt 0:00:11]} 9. Qxf3 {[%emt 0:00:01]} e5 {[%emt 0:00:47]} 10. dxe5 {[%emt 0:00:26]} dxe5 {[%emt 0:00:03]} 11. Nc3 {[%emt 0:01:46]} Nbd7 {[%emt 0:00:46]} 12. Rd1 {[%emt 0:05:24]} Qe7 {[%emt 0:00:14]} 13. Be3 {[%emt 0:04:34]} Nc5 {[%emt 0:00:10]} 14. Rd2 {[%emt 0:01:13]} Rad8 {[%emt 0:04:17]} 15. Rad1 {[%emt 0:00:44]} Rxd2 {[%emt 0:00:14]} 16. Rxd2 {[%emt 0:00:18]} b5 {[%emt 0:00:50]} 17. Bxc5 {[%emt 0:08:27]} Qxc5 {[%emt 0:00:02]} 18. Qd3 {[%emt 0:00:22]} Rc8 {[%emt 0:11:26]} 19. Nd1 {[%emt 0:04:02]} Bh6 {[%emt 0:08:32]} 20. Re2 {[%emt 0:10:00]} Qe7 {[%emt 0:00:33]} 21. Qf3 {[%emt 0:03:08]} Nd7 {[%emt 0:20:40]} 22. Ne3 Nc5 {[%emt 0:04:37]} 23. Rd2 {[%emt 0:15:48]} Rc7 {[%emt 0:00:51]} 24. c3 {[%emt 0:12:34]} a5 {[%emt 0:06:13]} 25. Bc2 {[%emt 0:01:57]} a4 {[%emt 0:00:19]} 26. Rd1 {[%emt 0:02:24]} Rd7 {[%emt 0:04:46]} 27. Rxd7 {[%emt 0:04:32]} Qxd7 {[%emt 0:01:00]} 28. Ng4 {[%emt 0:02:58]} Bg7 {[%emt 0:00:06]} 29. Nf6+ {[%emt 0:01:04]} Bxf6 {[%emt 0:00:06]} 30. Qxf6 {[%emt 0:00:01]} Qd2 {[%emt 0:02:48]} 31. Qxe5 {[%emt 0:01:37]} Ne6 {[%emt 0:00:24]} 32. c4 {[%emt 0:12:32]} Qxc2 {[%emt 0:00:32]} 33. cxb5 {[%emt 0:00:15]} cxb5 {[%emt 0:00:32]} 34. Qb8+ {[%emt 0:00:18]} Nf8 {[%emt 0:00:56]} 35. Qxb5 {[%emt 0:00:19]} Qxe4 {[%emt 0:00:30]} 36. g3 {[%emt 0:03:04]} Qb1+ {[%emt 0:00:21]} 37. Kg2 {[%emt 0:00:22]} Qxa2 {[%emt 0:00:09]} 38. Qe8 {[%emt 0:01:49]} Qb3 {[%emt 0:02:11]} 39. Kg1 {[%emt 0:00:31]} Qd1+ {[%emt 0:00:50]} 40. Kg2 {[%emt 0:00:19]} Qd4 {[%emt 0:15:23]} 41. h4 {[%emt 0:17:48]} h5 {[%emt 0:00:10]} 0-1

[Event "1. Bamberg-Open 2018"]
[Site "Bamberg"]
[Date "2018.05.12"]
[Round "6"]
[White "Huemmer, Bernd"]
[Black "Gegenfurtner, Juergen"]
[Result "0-1"]
[ECO "D02"]
[WhiteElo "2141"]
[BlackElo "2289"]
[Annotator "ChessBase"]
[PlyCount "68"]
[EventDate "2018.??.??"]
[EventType "swiss"]
[EventCountry "GER"]
[SourceTitle "playchess.com"]
[Source "ChessBase"]
[SourceQuality "1"]
[TimeControl "40/5400+30:900+30"]

1. Nf3 {[%emt 0:00:00]} d5 {[%emt 0:00:12]} 2. d4 {[%emt 0:00:00]} Nf6 {[%emt 0:00:10]} 3. Bf4 {[%emt 0:00:00]} e6 {[%emt 0:00:20]} 4. e3 {[%emt 0:00:19]} Bd6 {[%emt 0:01:10]} 5. Ne5 {[%emt 0:02:17]} O-O {[%emt 0:01:11]} 6. Bd3 {[%emt 0:00:51]} c5 {[%emt 0:01:59]} 7. c3 {[%emt 0:00:53]} Nc6 {[%emt 0:00:31]} 8. Nd2 {[%emt 0:01:24]} Qc7 {[%emt 0:02:30]} 9. Ndf3 {[%emt 0:04:51]} b6 {[%emt 0:01:53]} 10. Nxc6 {[%emt 0:05:05]} Qxc6 {[%emt 0:07:23]} 11. Bxd6 {[%emt 0:01:23]} Qxd6 {[%emt 0:00:05]} 12. Ne5 {[%emt 0:00:36]} Rb8 {[%emt 0:09:13]} 13. a3 {[%emt 0:11:48]} b5 {[%emt 0:08:39]} 14. O-O {[%emt 0:15:28]} a5 {[%emt 0:01:29]} 15. b4 {[%emt 0:04:07]} c4 {[%emt 0:01:36]} 16. Bc2 {[%emt 0:08:52]} Ne4 {[%emt 0:04:45]} 17. Bxe4 {[%emt 0:00:30]} dxe4 {[%emt 0:00:04]} 18. f4 {[%emt 0:00:45]} exf3 {[%emt 0:02:04]} 19. Nxf3 {[%emt 0:06:49]} Bb7 {[%emt 0:01:45]} 20. Qc2 {[%emt 0:01:23]} Ra8 {[%emt 0:06:23]} 21. a4 {[%emt 0:06:24]} axb4 {[%emt 0:04:14]} 22. cxb4 {[%emt 0:00:08]} bxa4 {[%emt 0:06:47]} 23. Rxa4 {[%emt 0:01:00]} Be4 {[%emt 0:01:12]} 24. Qa2 {[%emt 0:00:38]} Qxb4 {[%emt 0:00:41]} 25. Rxb4 {[%emt 0:03:35]} Rxa2 {[%emt 0:00:07]} 26. Rc1 {[%emt 0:04:09]} Bd5 {[%emt 0:04:09]} 27. e4 {[%emt 0:02:52]} Bxe4 {[%emt 0:00:06]} 28. Rbxc4 {[%emt 0:00:22]} g5 {[%emt 0:04:12]} 29. Rc5 {[%emt 0:01:41]} h6 {[%emt 0:00:39]} 30. Re5 {[%emt 0:02:08]} Bd5 {[%emt 0:04:01]} 31. Rd1 {[%emt 0:01:42]} Rc8 {[%emt 0:01:49]} 32. Rd2 {[%emt 0:01:05]} Rxd2 {[%emt 0:00:30]} 33. Nxd2 {[%emt 0:00:01]} Rc2 {[%emt 0:00:14]} 34. Re2 {[%emt 0:00:46]} Bc4 {[%emt 0:00:28]} 0-1

[Event "1. Bamberg-Open 2018"]
[Site "Bamberg"]
[Date "2018.05.12"]
[Round "6"]
[White "Hoffmann, Sebastian"]
[Black "Schulz, Karsten"]
[Result "0-1"]
[ECO "C00"]
[WhiteElo "2130"]
[BlackElo "2246"]
[Annotator "NA"]
[PlyCount "66"]
[EventDate "2018.??.??"]
[EventType "swiss"]
[EventCountry "GER"]
[SourceTitle "playchess.com"]
[Source "ChessBase"]
[SourceQuality "1"]
[TimeControl "40/5400+30:900+30"]

1. e4 {[%emt 0:00:00]} e6 {[%emt 0:00:19]} 2. Qe2 {[%emt 0:00:00]} b6 {[%emt 0:00:40]} 3. Nf3 {[%emt 0:00:20]} Bb7 {[%emt 0:00:08] C00: French: Unusual White 2nd moves} (3... c5 4. g3 Bb7 5. Bg2 Nf6 6. d3 d5 7. e5 Nfd7 8. O-O Nc6 9. c4 d4 10. Re1 Be7 11. h4 {0-1 (46) Gutierrez Olivares,D (2336)-Larino Nieto,D (2491) Las Palmas 2017}) 4. g3 {[%emt 0:00:27]} g6 {[%emt 0:00:13]} 5. Bg2 {[%emt 0:00:18]} Bg7 {[%emt 0:00:08]} 6. d4 {[%emt 0:00:47]} d6 $146 {[%emt 0:00:09]} ({Predecessor:} 6... Ne7 7. h4 O-O 8. h5 d5 9. hxg6 hxg6 10. e5 c5 11. Bg5 {1-0 (11) Sternik,R (1756)-Simoni,P (1800) FICGS email 2011}) 7. O-O {[%emt 0:00:37]} Nd7 {[%emt 0:00:12]} 8. c4 {[%emt 0:02:15]} Ne7 {[%emt 0:01:47]} 9. Nc3 {[%emt 0:00:32]} O-O {[%emt 0:00:07]} 10. h3 {[%emt 0:02:50]} a6 {[%emt 0:03:32]} 11. Be3 {[%emt 0:04:30]} b5 {[%emt 0:03:42]} 12. cxb5 {[%emt 0:11:01]} axb5 {[%emt 0:01:40]} 13. Qd2 {[%emt 0:13:23]} (13. a3 $11 {keeps the balance.}) 13... b4 {[%emt 0:00:54]} 14. Ne2 {[%emt 0:01:03]} Bxe4 {[%emt 0:00:19]} 15. Qxb4 {[%emt 0:00:25]} Nd5 {[%emt 0:01:31]} 16. Qd2 {[%emt 0:00:34]} Nxe3 {[%emt 0:00:17]} 17. Qxe3 {[%emt 0:02:25]} Nf6 {[%emt 0:00:36]} ({Black should try} 17... Bb7 $17 18. Ng5 Bxg2 19. Kxg2 c5) 18. Nc3 {[%emt 0:01:29]} Bb7 {[%emt 0:00:28]} 19. Rfc1 {[%emt 0:11:03]} Qe7 {[%emt 0:01:47]} 20. b4 {[%emt 0:07:15]} Rfb8 {[%emt 0:06:53]} 21. a4 {[%emt 0:01:03]} Qd7 {[%emt 0:02:48]} 22. b5 {[%emt 0:02:43]} Nd5 {[%emt 0:03:17]} 23. Nxd5 {[%emt 0:01:02]} Bxd5 {[%emt 0:00:07]} 24. Ne1 {[%emt 0:02:18]} Bxg2 {[%emt 0:00:43]} 25. Kxg2 {[%emt 0:00:21]} Rb7 {[%emt 0:06:23]} 26. Rc6 {[%emt 0:11:27] [#]} Rxb5 $1 {[%emt 0:02:55]} 27. Rac1 {[%emt 0:04:05]} ({Only move:} 27. axb5 $15 Rxa1 28. Nf3) 27... Rc5 {[%emt 0:01:58]} 28. Rxd6 {[%emt 0:04:30]} cxd6 {[%emt 0:01:01]} 29. dxc5 {[%emt 0:00:07]} dxc5 {[%emt 0:00:49]} 30. Qxc5 {[%emt 0:01:10]} Qxa4 {[%emt 0:00:25]} 31. Qe7 {[%emt 0:02:05]} Qe4+ {[%emt 0:00:59]} 32. Kh2 {[%emt 0:01:30]} Bd4 {[%emt 0:02:14]} 33. Rc4 {[%emt 0:09:02]} Qxe1 {[%emt 0:00:42]} 0-1

[Event "1. Bamberg-Open 2018"]
[Site "Bamberg"]
[Date "2018.05.12"]
[Round "6"]
[White "Korolev, Alexandr"]
[Black "Loew, Gerald"]
[Result "1/2-1/2"]
[ECO "C41"]
[WhiteElo "2071"]
[BlackElo "2202"]
[Annotator "NA"]
[PlyCount "64"]
[EventDate "2018.??.??"]
[EventType "swiss"]
[EventCountry "GER"]
[SourceTitle "playchess.com"]
[Source "ChessBase"]
[SourceQuality "1"]
[TimeControl "40/5400+30:900+30"]

{[%evp 9,63,34,28,27,27,21,32767,32767,32767,32767,32767,27,32767,-7,-5,32767,32767,-26,-32,32767,-17,-5,-18,32767,-6,-27,4,-25,32767,-84,32767,-84,32767,-52,-56,-64,32767,-61,-37,32767,-47,32767,-34,-32,32767,32767,-38,32767,32767,32767,32767,32767,32767,32767,32767,-39]} 1. e4 {[%emt 0:02:09]} d6 {[%emt 0:00:14]} 2. d4 {[%emt 0:01:04]} Nf6 {[%emt 0:00:08]} 3. Nc3 {[%emt 0:00:45]} e5 {[%emt 0:00:21]} 4. Nf3 {[%emt 0:00:20]} Nbd7 {[%emt 0:00:22]} 5. Be2 {[%emt 0:02:01]} Be7 {[%emt 0:00:26]} 6. O-O {[%emt 0:00:08]} c6 {[%emt 0:01:24] C41: Philidor Defence} 7. a4 {[%emt 0:00:10] LiveBook: 32 Games} a5 {[%emt 0:02:26]} (7... O-O 8. Re1 Qc7 9. Bf1 Re8 10. h3 Nf8 11. a5 Ng6 12. Be3 Bd7 13. Bc4 h6 14. d5 c5 15. Bf1 Rf8 16. Qb1 {½-½ (73) Zvjaginsev,V (2660)-Kunin,V (2556) Berlin 2015}) 8. Re1 {[%emt 0:00:07]} Qc7 {[%emt 0:00:33]} 9. Bf1 {[%emt 0:00:09]} h6 {[%emt 0:01:41]} 10. g3 $146 {[%emt 0:06:20]} ({Predecessor:} 10. b3 Nf8 11. h3 Rg8 12. Bb2 Ng6 13. Qd2 Be6 14. Ba3 {1-0 (33) Kupfer,M (2133)-Roomer,P (1700) Goch 2009}) 10... g5 {[%emt 0:02:03]} 11. dxe5 {[%emt 0:03:27]} (11. Bg2 $16) 11... dxe5 {[%emt 0:00:19]} 12. Nd2 {[%emt 0:00:20]} Nb6 {[%emt 0:12:50]} 13. Nb3 {[%emt 0:02:04]} Be6 {[%emt 0:08:18]} 14. Bd3 {[%emt 0:00:05]} Nbd7 {[%emt 0:05:53]} 15. Qe2 {[%emt 0:01:36]} Nc5 {[%emt 0:08:39]} 16. Nxc5 {[%emt 0:01:43]} Bxc5 {[%emt 0:00:08]} 17. Be3 {[%emt 0:02:37]} Qb6 {[%emt 0:03:18]} 18. Bxc5 {[%emt 0:01:13]} Qxc5 {[%emt 0:00:06]} 19. Qe3 {[%emt 0:02:10]} (19. Nd1 $11 {remains equal.}) 19... Qxe3 {[%emt 0:04:22]} 20. Rxe3 {[%emt 0:00:20]} Ke7 {[%emt 0:06:33]} 21. Be2 {[%emt 0:03:14]} h5 {[%emt 0:01:30]} 22. f3 {[%emt 0:02:38]} h4 {[%emt 0:04:18]} 23. Kg2 {[%emt 0:01:06]} Rh6 {[%emt 0:05:24]} 24. g4 {[%emt 0:01:24]} Rhh8 {[%emt 0:04:12]} 25. Rd3 {[%emt 0:01:31]} Rhd8 {[%emt 0:02:30]} 26. Nd1 {[%emt 0:00:47]} Rxd3 {[%emt 0:06:15]} 27. Bxd3 {[%emt 0:00:16]} Nd7 {[%emt 0:01:32]} 28. Kf2 {[%emt 0:01:29]} Nc5 {[%emt 0:00:40]} 29. Be2 {[%emt 0:03:46]} Rd8 {[%emt 0:01:23]} 30. Ke3 {[%emt 0:02:16]} Rd4 {[%emt 0:02:31]} 31. b3 {[%emt 0:01:08]} f6 {[%emt 0:02:19]} 32. Nb2 $15 {[%emt 0:01:45]} Kd8 {[%emt 0:06:06]} 1/2-1/2